fUSD/lending_fUSD_20260503
["ID","MTS","AMOUNT","RATE_DAILY","PERIOD"]
[421518266,1777811437000,-266.97,0.0002952,2]
[421518267,1777811437000,-300.0,0.00029924,2]
[421518260,1777811437000,-536.5206115,0.000271,7]
[421518271,1777811437000,-42700.92904916,0.00029943,2]
[421518270,1777811437000,-289.0,0.00029942,2]
[421518274,1777811437000,-161.03,0.00029999,2]
[421518272,1777811437000,-1580.02095084,0.00029943,2]
[421518275,1777811437000,-500.0,0.00030181,2]
[421518276,1777811437000,-4683.21080016,0.00030239,2]
[421518269,1777811437000,-5839.81695084,0.00029925,2]
[421518273,1777811437000,-1431.2,0.00029943,2]
[421518292,1777811438000,-2019.81992929,0.00033473,2]
[421518291,1777811438000,-1000.0,0.00033386,120]
[421518287,1777811438000,-152.0,0.00032852,7]
[421518290,1777811438000,-161.03,0.00033332,2]
[421518284,1777811438000,-161.03,0.00031665,2]
[421518293,1777811438000,-1396.05542016,0.000339,120]
[421518279,1777811438000,-2000.0,0.000311,7]
[421518282,1777811438000,-155.92919105,0.000316,2]
[421518283,1777811438000,-5771.68,0.00031634,2]
[421518288,1777811438000,-152.0,0.00032862,7]
[421518277,1777811438000,-15406.72919984,0.00030239,2]
[421518280,1777811438000,-1852.42,0.00031268,2]
[421518278,1777811438000,-2000.0,0.00030672,2]
[421518281,1777811438000,-200.0,0.00031321,2]
[421518285,1777811438000,-266.97,0.0003198,2]
[421518289,1777811438000,-1656.46354183,0.00033,120]
[421518295,1777811438000,-162.45035992,0.00034064,2]
[421518294,1777811438000,-260.40812167,0.000339,120]
[421518311,1777811438000,-3469.7027034,0.00034452,2]
[421518309,1777811438000,-1361.1542421,0.00034452,2]
[421518307,1777811438000,-6604.73662505,0.00034452,2]
[421518306,1777811438000,-704.92580482,0.00034452,2]
[421518304,1777811438000,-500.0,0.00034451,7]
[421518286,1777811438000,-1656.46354183,0.00032,120]
[421518300,1777811438000,-266.97,0.0003444,2]
[421518302,1777811438000,-433.14953722,0.00034451,7]
[421518303,1777811438000,-500.0,0.00034451,7]
[421518299,1777811438000,-171.79442795,0.00034421,2]
[421518298,1777811438000,-195.2175,0.00034352,2]
[421518297,1777811438000,-208.98,0.00034274,5]
[421518296,1777811438000,-1892.71,0.00034114,2]
[421518305,1777811438000,-443.04162763,0.00034451,7]
[421518301,1777811438000,-250.0,0.00034451,7]
[421518313,1777811438000,-580.23789574,0.00034452,2]
[421518359,1777811440000,-494.85661999,0.00034452,2]
[421518360,1777811440000,-914.93,0.00034452,2]
[421518383,1777811442000,-28306.23164443,0.00034452,2]
[421518406,1777811443000,-200.0,0.0003839,20]
[421518410,1777811443000,-181.47460296,0.000386,2]
[421518412,1777811443000,-1210.9968243,0.00038698,2]
[421518409,1777811443000,-190.02,0.00038548,52]
[421518446,1777811443000,-33718.49249414,0.000389,2]
[421518404,1777811443000,-391.560103,0.00038122,120]
[421518403,1777811443000,-280.776495,0.00038122,21]
[421518400,1777811443000,-187.184331,0.00038122,21]
[421518398,1777811443000,-5592.97,0.00037627,2]
[421518405,1777811443000,-183.55,0.00038359,2]
[421518397,1777811443000,-171.79442795,0.00037333,2]
[421518402,1777811443000,-295.326436,0.00038122,21]
[421518399,1777811443000,-150.0,0.00037917,120]
[421518407,1777811443000,-250.0,0.00038548,52]
[421518413,1777811443000,-865558.76359475,0.000387,2]
[421518401,1777811443000,-280.776495,0.00038122,120]
[421518393,1777811443000,-1656.46354183,0.00036,120]
[421518391,1777811443000,-2000.0,0.000351,7]
[421518387,1777811443000,-108399.86491015,0.00034452,2]
[421518396,1777811443000,-266.14,0.00036964,120]
[421518388,1777811443000,-706.45765261,0.00034521,2]
[421518389,1777811443000,-1971.28,0.00034712,39]
[421518394,1777811443000,-152.0,0.00036897,3]
[421518392,1777811443000,-171.79442795,0.00035877,2]
[421518390,1777811443000,-1656.46354183,0.00035,120]
[421518395,1777811443000,-266.97,0.000369,2]
[421518386,1777811443000,-2183.39602532,0.00034452,2]
[421518385,1777811443000,-1415.239929,0.00034452,2]
[421518384,1777811443000,-787.0,0.00034452,2]
[421518408,1777811443000,-250.0,0.00038548,52]
[421518418,1777811443000,-160.29235181,0.000387,105]
[421518443,1777811443000,-394.0,0.000389,5]
[421518411,1777811443000,-1599.4308907,0.00038698,2]
[421518440,1777811443000,-300.0,0.00038899,15]
[421518437,1777811443000,-500.0,0.00038899,15]
[421518442,1777811443000,-384.0,0.000389,5]
[421518439,1777811443000,-308.14177851,0.00038899,15]
[421518438,1777811443000,-540.94269346,0.00038899,15]
[421518441,1777811443000,-230.98326145,0.00038899,15]
[421518444,1777811443000,-316.0,0.000389,5]
[421518436,1777811443000,-574.91856135,0.00038899,15]
[421518414,1777811443000,-2254.51758865,0.000387,5]
[421518445,1777811443000,-34525.75526064,0.000389,42]
[421518435,1777811443000,-298.43874444,0.00038899,15]
[421518426,1777811443000,-20299.38,0.000388,7]
[421518429,1777811443000,-3824.0,0.00038877,120]
[421518424,1777811443000,-596.86,0.00038799,60]
[421518434,1777811443000,-52587.54610684,0.00038899,120]
[421518428,1777811443000,-1900.0,0.000388,14]
[421518432,1777811443000,-150.0,0.00038899,120]
[421518420,1777811443000,-171.79442795,0.00038788,2]
[421518416,1777811443000,-338.95,0.000387,2]
[421518419,1777811443000,-266.27699494,0.000387,2]
[421518415,1777811443000,-25000.0,0.000387,7]
[421518422,1777811443000,-1000.0,0.00038799,2]
[421518417,1777811443000,-900.0,0.000387,14]
[421518430,1777811443000,-213.51669626,0.0003889,2]
[421518431,1777811443000,-151.0,0.00038897,14]
[421518425,1777811443000,-1000.0,0.000388,60]
[421518433,1777811443000,-150.0,0.00038899,120]
[421518423,1777811443000,-191.09474138,0.00038799,2]
[421518421,1777811443000,-1000.0,0.00038799,2]
[421518427,1777811443000,-5000.0,0.000388,2]
[421518447,1777811444000,2761.13666707,0.0001,2]
[421518454,1777811446000,-2641.66838794,0.000389,2]
[421518455,1777811446000,-5532.0,0.000389,2]
[421518453,1777811446000,-61862.15791203,0.000389,2]
[421518500,1777811447000,270.88265774,0.000107,2]
[421518505,1777811454000,5000.01,0.000107,2]
[421518506,1777811454000,2942.46637189,0.000107,2]
[421518504,1777811454000,5000.01,0.000107,2]
[421518503,1777811454000,5000.01,0.000107,2]
[421518502,1777811454000,10000.01,0.000107,2]
[421518501,1777811454000,6967.99067519,0.000107,2]
[421518508,1777811461000,2502.44842219,0.000115,2]
[421518507,1777811461000,5000.01,0.000115,2]
[421518511,1777811527000,308.75,7.945e-05,2]
[421518513,1777811759000,284.1754,0.00030136,120]
[421518516,1777812128000,500.0,0.000192,7]
[421518523,1777812562000,-1200.0,0.0001978,2]
[421518524,1777812562000,-300.0,0.0001978,2]
[421518521,1777812562000,-160.49,0.00019618,2]
[421518522,1777812562000,-262.0,0.0001978,2]
[421518520,1777812562000,-160.49,0.00017983,2]
[421518525,1777812562000,-222.10504275,0.00019781,2]
[421518531,1777812566000,-4571.46306912,0.00020951,2]
[421518530,1777812566000,-693.71,0.00020951,2]
[421518529,1777812566000,-842.58,0.00020951,2]
[421518528,1777812566000,-250.0,0.00019781,2]
[421518526,1777812566000,-27.89495725,0.00019781,2]
[421518527,1777812566000,-250.0,0.00019781,2]
[421518534,1777812570000,-1680.0,0.00021647,2]
[421518533,1777812570000,-160.49,0.00021253,2]
[421518532,1777812570000,-3524.13693088,0.00020951,2]
[421518536,1777812570000,-598.02,0.00022562,2]
[421518535,1777812570000,-726.36,0.00022562,2]
[421518537,1777812570000,-442.64593312,0.00022562,2]
[421518545,1777812631000,-675.352,0.00022562,2]
[421518579,1777812632000,-160.49,0.00032696,2]
[421518577,1777812632000,-155.48,0.00032029,2]
[421518575,1777812632000,-2000.0,0.000311,7]
[421518576,1777812632000,-20000.0,0.00031272,2]
[421518574,1777812632000,-160.49,0.00031061,2]
[421518560,1777812632000,-152.78919869,0.00024819,2]
[421518572,1777812632000,-160.49,0.00029427,2]
[421518571,1777812632000,-500.0,0.000289,90]
[421518570,1777812632000,-500.0,0.000289,90]
[421518569,1777812632000,-420.0,0.00028085,2]
[421518567,1777812632000,-152.0,0.00027139,7]
[421518566,1777812632000,-503.0,0.00027137,2]
[421518568,1777812632000,-160.49,0.00027792,2]
[421518564,1777812632000,-1500.0,0.000271,7]
[421518578,1777812632000,-212.91,0.0003267,120]
[421518573,1777812632000,-587.0,0.00030396,2]
[421518553,1777812632000,-160.49,0.00022887,2]
[421518562,1777812632000,-166.33,0.00025951,2]
[421518546,1777812632000,-571.21932918,0.00022562,2]
[421518547,1777812632000,-448.71589931,0.00022562,2]
[421518548,1777812632000,-1652.648,0.00022562,2]
[421518549,1777812632000,-451.28410069,0.00022562,2]
[421518552,1777812632000,-1360.01027376,0.00022725,2]
[421518551,1777812632000,-2437.38792357,0.00022562,2]
[421518550,1777812632000,-299.70681413,0.00022562,2]
[421518581,1777812632000,-450.0,0.00032896,2]
[421518555,1777812632000,-375.0,0.00022999,2]
[421518554,1777812632000,-500.0,0.000229,2]
[421518557,1777812632000,-1000.0,0.000232,7]
[421518556,1777812632000,-1501.93077749,0.00023,3]
[421518558,1777812632000,-160.49,0.00024522,2]
[421518561,1777812632000,-300.0,0.0002595,2]
[421518559,1777812632000,-2500.0,0.00024819,2]
[421518563,1777812632000,-160.49,0.00026157,2]
[421518588,1777812632000,-1852.42,0.00037754,2]
[421518565,1777812632000,-533.0,0.00027137,2]
[421518580,1777812632000,-2796.48,0.00032846,2]
[421518613,1777812632000,-177.21288652,0.000387,2]
[421518612,1777812632000,-2300.0,0.000387,14]
[421518607,1777812632000,-1723.6641,0.000387,2]
[421518610,1777812632000,-171.69408914,0.000387,2]
[421518606,1777812632000,-1086.018,0.000387,2]
[421518608,1777812632000,-2500.0,0.000387,2]
[421518614,1777812632000,-213.51669626,0.0003879,2]
[421518615,1777812632000,-250.0,0.00038795,65]
[421518616,1777812632000,-250.0,0.00038795,65]
[421518617,1777812632000,-250.0,0.00038799,30]
[421518618,1777812632000,-328.0,0.00038799,5]
[421518621,1777812632000,-4749.38878769,0.000388,2]
[421518620,1777812632000,-696013.69115454,0.000388,2]
[421518619,1777812632000,-260.0,0.00038799,5]
[421518583,1777812632000,-160.49,0.00034331,2]
[421518611,1777812632000,-172.61117798,0.000387,2]
[421518605,1777812632000,-5000.0,0.000387,2]
[421518609,1777812632000,-404.22,0.000387,2]
[421518603,1777812632000,-1100.0,0.000386,14]
[421518585,1777812632000,-2000.0,0.000351,7]
[421518587,1777812632000,-212.91,0.00036754,120]
[421518586,1777812632000,-160.49,0.00035966,2]
[421518590,1777812632000,-435.81,0.00038034,30]
[421518592,1777812632000,-358.81,0.00038034,30]
[421518594,1777812632000,-4187.38,0.00038034,30]
[421518598,1777812632000,-162.45035992,0.00038269,2]
[421518595,1777812632000,-25000.0,0.000381,2]
[421518582,1777812632000,-164.7,0.00033805,2]
[421518596,1777812632000,-25000.0,0.000382,2]
[421518599,1777812632000,-200.0,0.0003849,20]
[421518597,1777812632000,-2855.3068493,0.00038247,2]
[421518602,1777812632000,-333.33333,0.0003857,103]
[421518600,1777812632000,-400.0,0.000385,30]
[421518601,1777812632000,-333.33333,0.0003852,103]
[421518584,1777812632000,-2594.85,0.00034712,39]
[421518604,1777812632000,-3296.43558961,0.000387,2]
[421518622,1777812635000,188.0,0.00012,2]
[421518626,1777812638000,-304.0,0.000388,2]
[421518625,1777812638000,-855.51922808,0.000388,2]
[421518672,1777812640000,-650.4944148,0.000388,2]
[421518671,1777812640000,-1515.4,0.000388,2]
[421518670,1777812640000,-1560.24,0.000388,2]
[421518685,1777812643000,-250935.9648887,0.000388,2]
[421518686,1777812643000,-493209.06132619,0.000388,2]
[421518687,1777812643000,-222.0,0.000388,2]
[421518688,1777812643000,-3000.0,0.000388,30]
[421518689,1777812643000,-3000.0,0.000388,30]
[421518691,1777812643000,-534.6766,0.000388,2]
[421518690,1777812643000,-4665.76985136,0.000388,30]
[421518696,1777812643000,-333.73799562,0.000388,2]
[421518695,1777812643000,-3680.95946616,0.000388,2]
[421518693,1777812643000,-3500.0,0.000388,14]
[421518694,1777812643000,-217.32462604,0.000388,7]
[421518707,1777812643000,-487206.08253961,0.000389,2]
[421518697,1777812643000,-5274.76294479,0.000388,2]
[421518704,1777812643000,-67262.87763032,0.000389,42]
[421518703,1777812643000,-151.0,0.00038897,14]
[421518705,1777812643000,-7114.05866671,0.000389,2]
[421518706,1777812643000,-141596.69131149,0.000389,2]
[421518710,1777812643000,-2706.80491109,0.000389,2]
[421518700,1777812643000,-250.0,0.00038849,65]
[421518699,1777812643000,-198.36461732,0.000388,2]
[421518698,1777812643000,-787.85872439,0.000388,2]
[421518701,1777812643000,-150.0,0.0003889,120]
[421518702,1777812643000,-151.0,0.00038897,14]
[421518692,1777812643000,-313.0,0.000388,2]
[421518721,1777812646000,-465.67317044,0.000389,2]
[421518718,1777812646000,-580.95695292,0.000387,2]
[421518717,1777812646000,-5000.0,0.000387,2]
[421518720,1777812646000,-9.77304708,0.000389,2]
[421518719,1777812646000,-177.27,0.00038881,2]
[421518726,1777812698000,500.0,0.00017883,2]
[421518728,1777812819000,281.29887848,0.00017824,7]
[421518727,1777812819000,223.6640806,0.00017824,7]
[421518729,1777812835000,177.0,0.00011385,2]
[421518730,1777812836000,177.0,0.00011894,2]
[421518731,1777813016000,221.0,0.00011385,2]
[421518732,1777813017000,221.0,0.00011865,2]
[421518733,1777813023000,200.58198959,0.00010573,2]
[421518734,1777813207000,1618.91815432,0.000192,7]
[421518736,1777813217000,-31.18363212,0.00012458,2]
[421518735,1777813217000,-500.0,0.00012458,2]
[421518737,1777813335000,150.0,0.00011604,30]
[421518738,1777813336000,150.0,0.00012847,30]
[421518739,1777813336000,150.0,0.0001409,30]
[421518741,1777813336000,17.08530116,0.00015333,30]
[421518742,1777813336000,150.0,0.00016577,30]
[421518740,1777813336000,132.91469884,0.00015333,30]
[421518744,1777813337000,150.0,0.00019063,30]
[421518743,1777813337000,150.0,0.0001782,30]
[421518747,1777813532000,-174.79421417,0.00012458,2]
[421518758,1777813732000,-254.01388956,0.00012458,2]
[421518759,1777813732000,-598.01711567,0.00012458,2]
[421518760,1777813732000,-250.0,0.00012458,2]
[421518761,1777813732000,-4.01388956,0.00012458,2]
[421518765,1777813732000,-265.62369043,0.00012458,2]
[421518763,1777813732000,-284.29527334,0.00012458,2]
[421518764,1777813732000,-102.93325357,0.00012458,2]
[421518766,1777813732000,-500.0,0.00013704,2]
[421518767,1777813732000,-86.4073148,0.00013704,2]
[421518762,1777813732000,-464.80247832,0.00012458,2]
[421518768,1777813733000,-163.5926852,0.00013704,2]
[421518769,1777813733000,-193.0,0.00013704,2]
[421518770,1777813733000,-199.0,0.00016,2]
[421518773,1777813733000,-197.48,0.00024658,2]
[421518771,1777813733000,-368.556944,0.00018558,2]
[421518772,1777813733000,-210.56,0.00024658,2]
[421518776,1777813733000,-65.44131648,0.00027137,2]
[421518775,1777813733000,-368.556944,0.00027137,2]
[421518777,1777813733000,-249.91,0.00017393,2]
[421518778,1777813733000,-353.97562008,0.00013704,2]
[421518774,1777813733000,-200.0,0.00024794,2]
[421518781,1777813820000,-249.91,0.00018308,2]
[421518782,1777813820000,-249.91,0.00019224,2]
[421518780,1777813820000,-633.28997017,0.00018237,2]
[421518779,1777813820000,-312.0,0.00012458,2]
[421518784,1777813821000,-249.91,0.00021054,2]
[421518783,1777813821000,-249.91,0.00020139,2]
[421518787,1777813821000,-249.91,0.00023801,2]
[421518785,1777813821000,-249.91,0.0002197,2]
[421518788,1777813821000,-161.58,0.00024658,2]
[421518790,1777813821000,-249.91,0.00025631,2]
[421518789,1777813821000,-249.91,0.00024716,2]
[421518791,1777813821000,-8.70127983,0.00026547,2]
[421518786,1777813821000,-249.91,0.00022885,2]
[421518824,1777813832000,-166.66,0.00034273,30]
[421518818,1777813832000,-249.91,0.00032954,2]
[421518828,1777813832000,-150.0,0.00034915,7]
[421518822,1777813832000,-249.91,0.0003387,2]
[421518825,1777813832000,-500.0,0.00034612,2]
[421518823,1777813832000,-163.2371,0.00033921,2]
[421518827,1777813832000,-150.0,0.00034915,30]
[421518838,1777813832000,-166.66,0.00034994,30]
[421518831,1777813832000,-150.0,0.00034915,7]
[421518842,1777813832000,-500.0,0.00035018,2]
[421518832,1777813832000,-150.0,0.00034915,7]
[421518830,1777813832000,-215.37855506,0.00034915,7]
[421518840,1777813832000,-3042.387,0.00035,40]
[421518839,1777813832000,-1980.0,0.00035,2]
[421518834,1777813832000,-150.0,0.00034915,7]
[421518833,1777813832000,-150.0,0.00034915,7]
[421518836,1777813832000,-2000.0,0.00034917,2]
[421518835,1777813832000,-150.0,0.00034915,7]
[421518837,1777813832000,-1000.0,0.00034917,2]
[421518844,1777813832000,-363.01114122,0.00035018,2]
[421518826,1777813832000,-249.91,0.00034785,2]
[421518841,1777813832000,-500.0,0.00035018,2]
[421518821,1777813832000,-305.0,0.00033601,30]
[421518808,1777813832000,-150.0,0.00031011,2]
[421518829,1777813832000,-150.0,0.00034915,7]
[421518798,1777813832000,-2890.66,0.00020951,2]
[421518799,1777813832000,-162.45035992,0.00022405,2]
[421518801,1777813832000,-558.0,0.000238,2]
[421518802,1777813832000,-241.20872017,0.00026547,2]
[421518800,1777813832000,-2491.94,0.00022562,2]
[421518804,1777813832000,-249.91,0.00028378,2]
[421518803,1777813832000,-249.91,0.00027462,2]
[421518805,1777813832000,-249.91,0.00029293,2]
[421518806,1777813832000,-150.0,0.00029534,2]
[421518854,1777813832000,-1001.80802509,0.00035499,2]
[421518813,1777813832000,-3330.29305569,0.0003285,2]
[421518807,1777813832000,-249.91,0.00030208,2]
[421518810,1777813832000,-185.31584628,0.000316,2]
[421518809,1777813832000,-249.91,0.00031124,2]
[421518815,1777813832000,-623.0,0.0003285,2]
[421518812,1777813832000,-150.0,0.00032562,2]
[421518811,1777813832000,-249.91,0.00032039,2]
[421518814,1777813832000,-202.70694431,0.0003285,2]
[421518817,1777813832000,-1267.0,0.0003285,2]
[421518816,1777813832000,-1049.0,0.0003285,2]
[421518819,1777813832000,-490.58305569,0.00033601,30]
[421518820,1777813832000,-329.41694431,0.00033601,30]
[421518853,1777813832000,-150.0,0.00035432,7]
[421518851,1777813832000,-200.0,0.00035412,2]
[421518846,1777813832000,-150.0,0.00035044,7]
[421518875,1777813832000,-500.0,0.00036077,2]
[421518871,1777813832000,-150.0,0.00035885,7]
[421518872,1777813832000,-26016.79586533,0.00035922,5]
[421518873,1777813832000,-4534.52,0.00035944,2]
[421518877,1777813832000,-317.84043674,0.00036164,2]
[421518843,1777813832000,-500.0,0.00035018,2]
[421518876,1777813832000,-150.0,0.00036079,7]
[421518881,1777813832000,-150.0,0.0003637,7]
[421518884,1777813832000,-150.0,0.00036467,30]
[421518885,1777813832000,-150.0,0.00036467,7]
[421518874,1777813832000,-150.0,0.0003595,7]
[421518883,1777813832000,-166.66,0.00036438,30]
[421518886,1777813832000,-150.0,0.00036467,7]
[421518890,1777813832000,-150.0,0.00036725,7]
[421518887,1777813832000,-185.91,0.0003655,2]
[421518882,1777813832000,-252.278165,0.00036399,21]
[421518889,1777813832000,-150.0,0.00036596,7]
[421518892,1777813832000,-150.0,0.00036855,7]
[421518888,1777813832000,-150.0,0.00036575,2]
[421518893,1777813832000,-150.0,0.00036855,7]
[421518894,1777813832000,-150.0,0.00036855,7]
[421518895,1777813832000,-1962.812,0.00036955,2]
[421518891,1777813832000,-150.0,0.00036855,7]
[421518870,1777813832000,-150.0,0.00035885,7]
[421518878,1777813832000,-150.0,0.00036208,7]
[421518880,1777813832000,-150.0,0.00036338,7]
[421518845,1777813832000,-150.0,0.00035018,2]
[421518847,1777813832000,-150.0,0.00035174,7]
[421518850,1777813832000,-150.0,0.000354,7]
[421518868,1777813832000,-1669.95,0.00035793,2]
[421518848,1777813832000,-152.37,0.00035292,2]
[421518852,1777813832000,-1000.0,0.00035412,120]
[421518864,1777813832000,-150.0,0.00035691,7]
[421518859,1777813832000,-150.0,0.00035566,2]
[421518858,1777813832000,-150.0,0.00035566,2]
[421518866,1777813832000,-306.13,0.00035703,2]
[421518849,1777813832000,-150.0,0.00035303,7]
[421518865,1777813832000,-150.0,0.00035691,7]
[421518879,1777813832000,-150.0,0.00036208,7]
[421518855,1777813832000,-150.0,0.000355,2]
[421518869,1777813832000,-150.0,0.0003582,7]
[421518856,1777813832000,-150.0,0.00035562,7]
[421518867,1777813832000,-166.66,0.00035716,30]
[421518857,1777813832000,-150.0,0.00035562,7]
[421518863,1777813832000,-150.0,0.00035691,30]
[421518862,1777813832000,-463.3,0.00035599,120]
[421518860,1777813832000,-150.0,0.00035566,2]
[421518861,1777813832000,-150.0,0.00035566,2]
[421518906,1777813833000,-150.0,0.00037243,7]
[421518896,1777813833000,-150.0,0.00036984,7]
[421518908,1777813833000,-516.58139398,0.00037256,21]
[421518917,1777813833000,-1064.54129407,0.00037733,2]
[421518916,1777813833000,-306.13,0.00037687,2]
[421518898,1777813833000,-252.278165,0.00037142,120]
[421518905,1777813833000,-150.0,0.00037243,30]
[421518897,1777813833000,-150.0,0.00037113,7]
[421518903,1777813833000,-166.66,0.00037159,30]
[421518904,1777813833000,-1000.0,0.00037199,2]
[421518900,1777813833000,-160.0,0.00037142,21]
[421518902,1777813833000,-806.546385,0.00037142,21]
[421518901,1777813833000,-483.273192,0.00037142,21]
[421518909,1777813833000,-534.74785025,0.00037256,21]
[421518899,1777813833000,-19572.564296,0.00037142,120]
[421518910,1777813833000,-150.0,0.0003734,7]
[421518907,1777813833000,-150.0,0.00037243,7]
[421518913,1777813833000,-150.0,0.00037501,7]
[421518914,1777813833000,-150.0,0.00037501,7]
[421518930,1777813833000,-95.00132965,0.000379,7]
[421518929,1777813833000,-500.0,0.000379,7]
[421518928,1777813833000,-22.38147085,0.000379,7]
[421518923,1777813833000,-150.0,0.00037889,7]
[421518926,1777813833000,-553.94,0.000379,7]
[421518927,1777813833000,-477.61852915,0.000379,7]
[421518924,1777813833000,-500.0,0.000379,7]
[421518925,1777813833000,-500.0,0.000379,7]
[421518921,1777813833000,-150.0,0.00037825,7]
[421518920,1777813833000,-150.0,0.00037825,7]
[421518918,1777813833000,-150.0,0.0003776,7]
[421518919,1777813833000,-166.66,0.00037789,2]
[421518915,1777813833000,-150.0,0.00037631,7]
[421518912,1777813833000,-150.0,0.00037372,7]
[421518911,1777813833000,-252.278165,0.0003736,21]
[421518922,1777813833000,-166.66,0.00037881,30]
[421518961,1777813838000,-151.0,0.00038202,2]
[421518954,1777813838000,-151.0,0.00038202,2]
[421518959,1777813838000,-151.0,0.00038202,2]
[421518955,1777813838000,-151.0,0.00038202,2]
[421518958,1777813838000,-151.0,0.00038202,2]
[421518956,1777813838000,-151.0,0.00038202,2]
[421518970,1777813838000,-151.0,0.00038202,2]
[421518964,1777813838000,-151.0,0.00038202,2]
[421518965,1777813838000,-151.0,0.00038202,2]
[421518972,1777813838000,-151.0,0.00038202,2]
[421518963,1777813838000,-151.0,0.00038202,2]
[421518962,1777813838000,-151.0,0.00038202,2]
[421518960,1777813838000,-151.0,0.00038202,2]
[421518969,1777813838000,-154.69,0.00038202,2]
[421518967,1777813838000,-151.0,0.00038202,2]
[421518957,1777813838000,-151.0,0.00038202,2]
[421518968,1777813838000,-151.0,0.00038202,2]
[421518971,1777813838000,-151.0,0.00038202,2]
[421518951,1777813838000,-150.0,0.00038148,7]
[421518941,1777813838000,-500.0,0.000379,7]
[421518949,1777813838000,-2479.7232,0.00038022,2]
[421518933,1777813838000,-500.0,0.00035577,7]
[421518935,1777813838000,-3587.821524,0.00037438,120]
[421518934,1777813838000,-151.88198565,0.00035851,7]
[421518932,1777813838000,-500.0,0.00035303,7]
[421518937,1777813838000,-709.69419605,0.00037733,2]
[421518936,1777813838000,-384.409449,0.00037438,21]
[421518939,1777813838000,-500.0,0.000379,7]
[421518946,1777813838000,-150.0,0.00038019,120]
[421518952,1777813838000,-150.0,0.00038148,7]
[421518948,1777813838000,-150.0,0.00038019,7]
[421518938,1777813838000,-404.99867035,0.000379,7]
[421518940,1777813838000,-500.0,0.000379,7]
[421518966,1777813838000,-151.0,0.00038202,2]
[421518943,1777813838000,-500.0,0.000379,7]
[421518944,1777813838000,-173.08,0.000379,7]
[421518947,1777813838000,-150.0,0.00038019,7]
[421518945,1777813838000,-447.57678054,0.00038,120]
[421518950,1777813838000,-1495.17,0.00038034,30]
[421518942,1777813838000,-500.0,0.000379,7]
[421518973,1777813838000,-151.0,0.00038202,2]
[421518953,1777813838000,-533.061,0.0003816,2]
[421518976,1777813838000,-151.0,0.00038202,2]
[421518998,1777813838000,-151.0,0.00038202,2]
[421519003,1777813838000,-151.0,0.00038202,2]
[421518999,1777813838000,-151.0,0.00038202,2]
[421519006,1777813838000,-151.0,0.00038202,2]
[421518997,1777813838000,-571.19,0.00038202,2]
[421519002,1777813838000,-151.0,0.00038202,2]
[421519001,1777813838000,-151.0,0.00038202,2]
[421519005,1777813838000,-153.03,0.00038202,2]
[421519004,1777813838000,-151.0,0.00038202,2]
[421519008,1777813838000,-151.0,0.00038202,2]
[421519010,1777813838000,-151.0,0.00038202,2]
[421519007,1777813838000,-151.0,0.00038202,2]
[421519014,1777813838000,-151.0,0.00038202,2]
[421519016,1777813838000,-151.0,0.00038202,2]
[421519012,1777813838000,-153.65,0.00038202,2]
[421519015,1777813838000,-151.0,0.00038202,2]